fUST/lending_fUST_20251102
["ID","MTS","AMOUNT","RATE_DAILY","PERIOD"]
[392865563,1762084013818,500.0,0.00022732,2]
[392865565,1762084014123,299.99999999,0.00022732,2]
[392865566,1762084018754,500.0,0.00022732,2]
[392865567,1762084018790,622.5,0.00022732,2]
[392865568,1762084019002,500.0,0.00022732,2]
[392865569,1762084019038,500.0,0.00022732,2]
[392865570,1762084019066,500.0,0.00022732,2]
[392865571,1762084019112,11.58641158,0.00022732,2]
[392865572,1762084019134,488.41358842,0.00022732,2]
[392865573,1762084019192,500.0,0.00022732,2]
[392865574,1762084020901,502.31,0.00022724,10]
[392865575,1762084032910,418.59,0.00022724,10]
[392865576,1762084036888,199.1,0.000228,14]
[392865577,1762084044091,150.0,0.00021544,2]
[392865578,1762084044518,150.0,0.0002257,2]
[392865579,1762084045177,348.83,0.00022724,10]
[392865580,1762084057250,418.75,0.00022724,10]
[392865581,1762084069251,348.96,0.00022724,10]
[392865583,1762084081307,500.0,0.00022732,2]
[392865584,1762084081360,500.0,0.00022732,2]
[392865585,1762084081542,290.8,0.00022724,10]
[392865586,1762084086393,300.0,0.00022732,2]
[392865587,1762084090849,500.0,0.00022732,2]
[392865588,1762084094127,242.34,0.00022724,10]
[392865589,1762084102750,540.0,0.00022733,7]
[392865590,1762084106300,201.95,0.00022724,10]
[392865592,1762084118234,168.29,0.00022724,10]
[392865595,1762084126455,6911.59641158,0.00022673,2]
[392865596,1762084126478,116.59799412,0.00022673,2]
[392865597,1762084131272,841.46,0.00022724,10]
[392865598,1762084143748,300.0,0.00022732,2]
[392865599,1762084173011,179.19,0.000228,14]
[392865600,1762084177736,779.64,0.00022724,3]
[392865601,1762084184496,-413.12293367,0.00022733,2]
[392865602,1762084184525,-521.72679285,0.00022733,2]
[392865603,1762084184552,-277.63372913,0.00022733,2]
[392865604,1762084184582,-500.0,0.00022733,2]
[392865605,1762084184613,-386.21662253,0.00022733,2]
[392865606,1762084184645,-249.65852487,0.00022733,2]
[392865607,1762084184675,-500.0,0.00022733,2]
[392865608,1762084184704,-500.0,0.00022733,2]
[392865609,1762084184733,-371.09690888,0.00022733,2]
[392865610,1762084184890,-322.18375626,0.00022733,2]
[392865611,1762084184918,-500.0,0.00022733,2]
[392865612,1762084184946,-416.73146362,0.00022733,2]
[392865613,1762084185304,-83.26853638,0.00022733,2]
[392865614,1762084185334,-500.0,0.00022733,2]
[392865615,1762084185364,-542.23996286,0.00022733,2]
[392865616,1762084188377,389.82,0.00022724,3]
[392865617,1762084196200,7748.99300152,0.00022,2]
[392865618,1762084196222,10000.01,0.00022,2]
[392865619,1762084196243,10000.01,0.00022,2]
[392865620,1762084196266,1121.38699848,0.00022,2]
[392865621,1762084198944,194.91,0.00022724,3]
[392865622,1762084202378,300.0,0.00022733,2]
[392865623,1762084202405,300.0,0.00022733,2]
[392865624,1762084206517,1000.0,0.00022733,2]
[392865625,1762084207135,1000.0,0.00022733,2]
[392865626,1762084207760,1000.0,0.00022733,2]
[392865627,1762084208459,1000.0,0.00022733,2]
[392865628,1762084208484,300.0,0.00022733,2]
[392865629,1762084209165,923.09341047,0.00022733,2]
[392865630,1762084209246,151.0,0.00022733,2]
[392865631,1762084209540,584.77,0.00022724,3]
[392865632,1762084209888,151.0,0.00022733,2]
[392865633,1762084211831,1200.0,0.00022733,2]
[392865634,1762084217142,151.0,0.00037926,60]
[392865635,1762084217792,151.0,0.00037926,60]
[392865649,1762084231764,-598.0,0.00022734,2]
[392865655,1762084231818,-2294.67210985,0.00022734,2]
[392865657,1762084231829,-32359.64179834,0.00022734,2]
[392865705,1762084237706,-2203.69637437,0.00022734,2]
[392865708,1762084237763,-928.98345371,0.00022734,2]
[392865709,1762084237775,-1703.45085993,0.00022734,2]
[392865710,1762084237786,-435.0,0.00022734,2]
[392865738,1762084240326,-0.0103962,0.00022734,2]
[392865739,1762084240337,-5000.0,0.00022734,2]
[392865740,1762084240348,-43394.45000005,0.00022734,2]
[392865746,1762084242806,-7443.05558514,0.00022734,2]
[392865753,1762084262598,300.0,0.00022733,2]
[392865755,1762084302833,224.805,0.00022279,2]
[392865756,1762084302935,179.46497678,0.00022279,2]
[392865757,1762084309743,161.27,0.000228,14]
[392865759,1762084319864,500.0,0.00022733,2]
[392865760,1762084319895,349.25961427,0.00022733,2]
[392865761,1762084319917,150.74038573,0.00022733,2]
[392865762,1762084319945,500.0,0.00022733,2]
[392865763,1762084319984,500.0,0.00022733,2]
[392865764,1762084320010,240.58956526,0.00022733,2]
[392865765,1762084320041,500.0,0.00022733,2]
[392865766,1762084320197,500.0,0.00022733,2]
[392865767,1762084320262,500.0,0.00022733,2]
[392865768,1762084320290,500.0,0.00022733,2]
[392865769,1762084320329,500.0,0.00022733,2]
[392865770,1762084320357,500.0,0.00022733,2]
[392865771,1762084320706,-274.71607763,0.00022734,2]
[392865772,1762084322318,300.0,0.00022733,2]
[392865773,1762084323500,-449.32869241,0.00022734,2]
[392865774,1762084327407,-154.57105052,0.00022734,2]
[392865775,1762084329562,-162.51335656,0.00022734,2]
[392865776,1762084333448,-300.00784926,0.00022734,2]
[392865778,1762084361251,1200.0,0.00022733,2]
[392865779,1762084383001,300.0,0.00022733,2]
[392865780,1762084384193,-5067.81236058,0.00022734,2]
[392865781,1762084384258,-10000.01,0.00022734,2]
[392865782,1762084384335,-10000.01,0.00022734,2]
[392865783,1762084384444,-10000.01,0.00022734,2]
[392865784,1762084384562,-10000.01,0.00022734,2]
[392865785,1762084384679,-10000.01,0.00022734,2]
[392865786,1762084384827,-10000.01,0.00022734,2]
[392865787,1762084384939,-10000.01,0.00022734,2]
[392865788,1762084385083,-10000.01,0.00022734,2]
[392865789,1762084386442,-10000.01,0.00022734,2]
[392865790,1762084394095,368.97594608,0.00021881,2]
[392865791,1762084400931,5000.0,0.00023,3]
[392865792,1762084403927,632.56,0.00022724,3]
[392865793,1762084404345,203.39,0.00022724,10]
[392865794,1762084408984,5000.0,0.00023,3]
[392865795,1762084414675,169.49,0.00022724,10]
[392865796,1762084424075,163.57254089,0.00023,3]
[392865797,1762084426225,150.0,0.00021834,2]
[392865798,1762084427907,847.49,0.00022724,10]
[392865799,1762084431873,1141.80034382,0.00023,3]
[392865801,1762084445914,161.27,0.000228,14]
[392865803,1762084504577,844.61527132,0.0002185,2]
[392865804,1762084506247,151.0,0.00037924,60]
[392865805,1762084507367,156.587,0.00037924,60]
[392865806,1762084508000,156.587,0.00037924,60]
[392865808,1762084557554,600.0,0.00022839,7]
[392865809,1762084581743,161.27,0.000228,14]
[392865810,1762084583758,151.0,0.0002299,7]
[392865811,1762084590074,151.0,0.0002299,7]
[392865812,1762084600910,-462.05601572,0.00022672,2]
[392865813,1762084601323,163.187408,0.0002299,7]
[392865814,1762084603176,-200.0,0.00022672,2]
[392865815,1762084606181,162.862392,0.0002299,7]
[392865816,1762084606422,-373.11109552,0.00022672,2]
[392865818,1762084610468,-164.83288876,0.00022672,2]
[392865819,1762084610491,-265.44336032,0.00022673,2]
[392865820,1762084613186,-50.29672082,0.00022673,2]
[392865821,1762084613209,-125.171449,0.00022673,2]
[392865822,1762084616967,-326.8265831,0.00022673,2]
[392865823,1762084619678,-252.05550831,0.00022673,2]
[392865824,1762084621157,-276.52831282,0.00022673,2]
[392865825,1762084622736,-161.62,0.00022673,2]
[392865826,1762084624358,-280.13848438,0.00022673,2]
[392865827,1762084624386,-50.79151562,0.0002273,2]
[392865828,1762084626398,-226.22762231,0.0002273,2]
[392865829,1762084631358,-22.98086207,0.0002273,2]
[392865830,1762084631378,-269.90145459,0.00022731,2]
[392865831,1762084633157,-295.65083846,0.00022731,2]
[392865832,1762084634780,-314.514327,0.00022731,2]
[392865833,1762084637798,151.0,0.0002299,7]
[392865834,1762084638676,-326.59577392,0.00022731,2]
[392865836,1762084641233,-195.50007337,0.00022731,2]
[392865837,1762084646787,-409.2437743,0.00022731,2]
[392865838,1762084648857,-379.95668381,0.00022731,2]
[392865839,1762084649739,151.0,0.0002299,7]
[392865840,1762084652006,5108.65305692,0.00022673,2]
[392865841,1762084652846,-419.09191029,0.00022731,2]
[392865842,1762084654362,-184.39437288,0.00022731,2]
[392865843,1762084655876,-448.06547416,0.00022731,2]
[392865844,1762084657388,-200.0437462,0.00022731,2]
[392865845,1762084659004,-168.95182168,0.00022731,2]
[392865846,1762084660459,-300.0,0.00022731,2]
[392865847,1762084660624,1397.269393,0.0002299,7]
[392865848,1762084662761,1397.269393,0.0002299,7]
[392865849,1762084664830,1397.269393,0.0002299,7]
[392865850,1762084666302,1397.269393,0.0002299,7]
[392865851,1762084682791,150.0,0.00021979,2]
[392865852,1762084697877,583.47215,0.0002299,7]
[392865853,1762084699080,151.0,0.0002299,7]
[392865854,1762084699485,583.47215,0.0002299,7]
[392865855,1762084701008,430.74607976,0.0002299,7]
[392865858,1762084750480,1392.931832,0.00021742,2]
[392866006,1762084776649,-150.0,0.00022198,2]
[392866007,1762084776672,-309.42527952,0.00022416,2]
[392866008,1762084776695,-324.85,0.00022624,3]
[392866009,1762084776718,-300.0,0.00022633,2]
[392866010,1762084776741,-198915.72472048,0.00022634,2]
[392866011,1762084809938,159.0,0.00032877,120]
[392866012,1762084812485,151.0,0.00037921,60]
[392866013,1762084813175,156.587,0.00037921,60]
[392866015,1762084813340,150.0,0.00021792,2]
[392866017,1762084813750,162.380719,0.00037921,60]
[392866018,1762084814395,168.3888056,0.00037921,60]
[392866019,1762084815018,174.61919141,0.00037921,60]
[392866020,1762084815657,181.08010149,0.00037921,60]
[392866021,1762084816294,187.78006525,0.00037921,60]
[392866022,1762084816934,194.72792766,0.00037921,60]
[392866023,1762084817544,201.93286099,0.00037921,60]
[392866024,1762084818154,209.40437684,0.00037921,60]
[392866025,1762084818779,217.15233878,0.00037921,60]
[392866026,1762084819396,225.18697532,0.00037921,60]
[392866027,1762084820028,233.51889341,0.00037921,60]
[392866028,1762084820657,242.15909246,0.00037921,60]
[392866029,1762084837767,-371.46902386,0.00022424,2]
[392866030,1762084839246,-269.39634705,0.00022424,2]
[392866031,1762084864173,-22.7016593,0.00022424,2]
[392866032,1762084864195,-137.14849601,0.00022524,2]
[392866033,1762084866204,-120.15075044,0.00022524,2]
[392866034,1762084866228,-97.78477038,0.00022524,2]
[392866035,1762084879253,-241.71034407,0.00022524,2]
[392866036,1762084881453,-22.50488555,0.00022524,2]
[392866037,1762084881476,-223.05811855,0.00022573,2]
[392866038,1762084894592,-173.38224351,0.00022573,2]
[392866039,1762084896621,-738.58241543,0.00022573,2]
[392866040,1762084896642,-153.93840474,0.000226,2]
[392866041,1762084909980,-146.06159526,0.000226,2]
[392866042,1762084910000,-80.32237351,0.000226,2]
[392866043,1762084912369,3405.76870462,0.00022573,2]
[392866045,1762084941358,150.0,0.00021643,2]
[392866046,1762084957759,-300.0,0.000226,2]
[392866047,1762084957783,-48.72106765,0.00022624,3]
[392866048,1762084959910,-272.03763903,0.000226,2]
[392866049,1762084961961,-27.96236097,0.000226,2]
[392866050,1762084961982,-113.69893235,0.00022624,3]
[392866051,1762084962002,-18.42037035,0.00022624,3]
[392866052,1762084963578,-300.0,0.00022624,3]
[392866053,1762084964765,2945.000619,0.00021633,2]
[392866054,1762084965848,-168.86962965,0.00022624,3]
[392866055,1762084965872,-131.13037035,0.00022631,2]
[392866056,1762084969649,-357.9594126,0.00022631,2]
[392866058,1762085001716,2855.60736871,0.00021691,2]
[392866059,1762085006556,150.0,0.00021435,2]
[392866063,1762085026784,158.796574,0.00021632,2]
[392866066,1762085088142,2556.60672,0.00021631,2]
[392866067,1762085106598,400.18697205,0.00021691,2]
[392866068,1762085111810,151.0,0.00037918,60]
[392866069,1762085112469,156.587,0.00037918,60]
[392866070,1762085113079,162.380719,0.00037918,60]
[392866113,1762085123366,-273.82832758,0.00021691,2]
[392866115,1762085123392,-86.62615192,0.00021691,2]
[392866123,1762085124762,-303.07148793,0.00021691,2]
[392866140,1762085126862,-317.77055923,0.00021691,2]
[392866143,1762085130326,-213.05451628,0.00021691,2]
[392866158,1762085154495,-307.95946143,0.00021691,2]
[392866159,1762085156639,-1206.81929964,0.00021691,2]
[392866160,1762085159991,-300.0,0.00021691,2]
[392866161,1762085161650,-385.25329027,0.00021691,2]
[392866162,1762085163203,-43.81911885,0.00021691,2]
[392866163,1762085163228,-300.0,0.00021989,2]
[392866164,1762085163247,-28.11408654,0.0002199,2]
[392866165,1762085222300,300.0,0.00021972,2]
[392866167,1762085261725,1200.0,0.00021972,2]
[392866168,1762085282311,300.0,0.00021972,2]
[392866169,1762085307277,190.0,0.00037918,120]
[392866170,1762085314615,306.84943915,0.000225,3]
[392866171,1762085317777,-500.0,0.00021973,2]
[392866172,1762085317799,-207.17207289,0.00021973,2]
[392866173,1762085320510,-200.4666143,0.00021973,2]
[392866174,1762085322074,218.99699237,0.0002189,2]
[392866175,1762085324349,-92.36131281,0.00021973,2]
[392866176,1762085324370,-189.82442573,0.00021973,2]
[392866177,1762085327151,150.0,0.00021818,2]
[392866178,1762085338801,993.14493033,0.0002189,2]
[392866181,1762085371276,774.448284,0.00013699,2]
[392866182,1762085371556,774.448284,0.00020187,2]
[392866183,1762085372090,-162.88488126,0.00021973,2]
[392866184,1762085372390,300.0,0.000218,2]
[392866185,1762085374135,-147.29069301,0.00021973,2]
[392866186,1762085374156,-139.82442573,0.00021973,2]
[392866187,1762085375650,-233.57220567,0.00021973,2]
[392866188,1762085388698,-126.6033686,0.00021973,2]
[392866189,1762085388719,-255.37971362,0.00021973,2]
[392866190,1762085391805,150.0,0.00021819,2]
[392866191,1762085396738,877.1,0.0002198,3]
[392866192,1762085406478,151.0,0.00037918,120]
[392866193,1762085407231,151.0,0.00037918,120]
[392866194,1762085411794,931.29249829,0.0002169,2]
[392866195,1762085418228,-200.0,0.00021973,2]
[392866309,1762085436020,-300.0,0.00021987,2]
[392866311,1762085436029,-300.0,0.00021987,2]
[392866313,1762085436038,-300.0,0.00021987,2]
[392866315,1762085436047,-300.0,0.00021987,2]
[392866317,1762085436057,-1200.0,0.00021987,2]
[392866319,1762085436066,-507.58973142,0.00021987,2]
[392866321,1762085436076,-312.09396615,0.00021987,2]
[392866322,1762085436085,-1405.29933043,0.00021988,2]
[392866324,1762085436096,-2203.3005672,0.00021988,2]
[392866326,1762085436114,-46391.40010237,0.00021988,2]
[392866327,1762085436123,-50062.94332151,0.0002199,2]
[392866339,1762085441025,-3e-08,0.0002199,2]
[392866340,1762085441037,-370.00919999,0.0002199,2]
[392866391,1762085443020,-49538.93339193,0.0002199,2]
[392866392,1762085443029,-255.17902643,0.00022,2]
[392866394,1762085443040,-989.51014631,0.00022257,2]
[392866396,1762085443049,-168.0,0.00022268,2]
[392866398,1762085443058,-168.0,0.0002227,2]
[392866400,1762085443068,-168.0,0.00022316,2]
[392866402,1762085443077,-168.0,0.00022359,2]
[392866404,1762085443087,-168.0,0.00022402,2]
[392866406,1762085443096,-168.0,0.00022406,2]
[392866409,1762085443105,-279.35421984,0.00022521,2]
[392866412,1762085443115,-1000.0,0.00022521,2]
[392866415,1762085443126,-168.0,0.00022533,2]
[392866417,1762085443135,-3956.43560579,0.00022534,2]
[392866419,1762085443144,-350.01,0.00022573,2]
[392866421,1762085443153,-285.58813828,0.0002262,2]
[392866423,1762085443162,-292.36,0.00022624,3]
[392866425,1762085443172,-1698.0,0.00022631,2]
[392866427,1762085443180,-500.0,0.00022632,2]
[392866429,1762085443194,-500.0,0.00022632,2]
[392866431,1762085443204,-155.0,0.00022633,2]
[392866433,1762085443214,-500.0,0.00022633,2]
[392866435,1762085443223,-500.0,0.00022633,2]
[392866437,1762085443233,-500.0,0.00022633,2]
[392866439,1762085443243,-264.93039708,0.00022633,2]
[392866441,1762085443252,-500.0,0.00022633,2]
[392866443,1762085443262,-500.0,0.00022633,2]
[392866445,1762085443272,-500.0,0.00022633,2]
[392866447,1762085443281,-486084.27527952,0.00022634,2]
[392866449,1762085443291,-151.0,0.00022634,7]
[392866451,1762085443300,-151.0,0.00022634,7]
[392866453,1762085443309,-151.0,0.00022634,2]
[392866455,1762085443319,-503.587631,0.00022634,7]
[392866457,1762085443328,-503.587631,0.00022634,7]
[392866459,1762085443337,-503.587631,0.00022634,7]
[392866461,1762085443346,-503.587631,0.00022634,7]
[392866463,1762085443356,-151.0,0.00022634,2]
[392866465,1762085443365,-151.0,0.00022634,7]
[392866467,1762085443374,-1345.499531,0.00022634,7]
[392866469,1762085443384,-1345.499531,0.00022634,7]
[392866470,1762085443393,-1345.499531,0.00022634,7]
[392866472,1762085443403,-1345.499531,0.00022634,7]
[392866474,1762085443412,-151.0,0.00022634,7]
[392866476,1762085443420,-246.628009,0.00022634,7]
[392866478,1762085443429,-500.0,0.00022673,2]
[392866480,1762085443438,-500.0,0.00022673,2]
[392866482,1762085443447,-500.0,0.00022673,2]
[392866484,1762085443456,-500.0,0.00022673,2]
[392866486,1762085443465,-500.0,0.00022673,2]
[392866488,1762085443474,-500.83073763,0.00022673,2]
[392866490,1762085443483,-500.0,0.00022673,2]
[392866492,1762085443492,-500.0,0.00022673,2]
[392866494,1762085443502,-500.0,0.00022673,2]
[392866496,1762085443512,-500.0,0.00022673,2]
[392866498,1762085443521,-500.0,0.00022673,2]
[392866500,1762085443530,-500.0,0.00022673,2]
[392866502,1762085443539,-500.0,0.00022673,2]
[392866504,1762085443548,-500.0,0.00022673,2]
[392866506,1762085443557,-500.0,0.00022673,2]
[392866508,1762085443566,-500.0,0.00022673,2]
[392866510,1762085443576,-500.0,0.00022673,2]
[392866511,1762085443585,-500.0,0.00022673,2]
[392866513,1762085443596,-1698.0,0.00022686,2]
[392866515,1762085443605,-500.0,0.00022728,2]
[392866517,1762085443614,-371.58671549,0.0002273,2]
[392866519,1762085443623,-153.9797307,0.00022733,2]
[392866521,1762085443632,-500.0,0.00022733,2]
[392866522,1762085443641,-1000.0,0.00022733,2]
[392866523,1762085443651,-1000.0,0.00022733,2]
[392866524,1762085443660,-1020.96833816,0.00022733,2]
[392866525,1762085443669,-125682.23268621,0.00022739,2]
[392866533,1762085446164,-32827.28827212,0.00022739,2]
[392866534,1762085446271,-8404.42815008,0.00022739,2]
[392866535,1762085446325,-837.92167534,0.00022739,2]
[392866536,1762085453411,350.0,0.00021987,2]
[392866537,1762085453448,500.0,0.00021987,2]
[392866538,1762085453479,500.0,0.00021987,2]
[392866539,1762085453518,500.0,0.00021987,2]
[392866540,1762085453547,500.0,0.00021987,2]
[392866541,1762085453574,500.0,0.00021987,2]
[392866542,1762085453706,500.0,0.00021987,2]
[392866543,1762085453735,500.0,0.00021987,2]
[392866544,1762085453762,500.0,0.00021987,2]
[392866545,1762085453791,500.0,0.00021987,2]
[392866546,1762085453827,343.96067588,0.00021987,2]
[392866547,1762085453854,500.0,0.00021987,2]
[392866548,1762085453883,500.0,0.00021987,2]
[392866549,1762085453911,500.0,0.00021987,2]
[392866550,1762085453946,500.0,0.00021987,2]
[392866551,1762085454030,500.0,0.00021987,2]
[392866552,1762085454092,500.0,0.00021987,2]
[392866553,1762085454135,500.0,0.00021987,2]
[392866554,1762085454165,500.0,0.00021987,2]
[392866555,1762085454208,500.0,0.00021987,2]
[392866556,1762085461089,151.0,0.00022634,7]
[392866557,1762085462397,151.0,0.00022634,7]
[392866558,1762085464356,500.0,0.00021987,2]
[392866570,1762085572791,-381.98308222,0.0002171,2]
[392866571,1762085572815,-31.15139301,0.0002181,2]
[392866574,1762085575413,-118.84860699,0.0002181,2]
[392866575,1762085575435,-115.01802558,0.00021811,2]
[392866597,1762085603508,151.0,0.00037916,120]
[392866598,1762085604126,156.587,0.00037916,120]
[392866599,1762085604734,162.380719,0.00037916,120]
[392866600,1762085605378,168.3888056,0.00037916,120]
[392866601,1762085605957,174.61919141,0.00037916,120]
[392866602,1762085606728,181.08010149,0.00037916,120]
[392866603,1762085607239,187.78006525,0.00037916,120]
[392866604,1762085607876,194.72792766,0.00037916,120]
[392866605,1762085608504,201.93286099,0.00037916,120]
[392866606,1762085609113,209.40437684,0.00037916,120]
[392866607,1762085610161,217.15233878,0.00037916,120]
[392866610,1762085610827,225.18697532,0.00037916,120]
[392866611,1762085611419,233.51889341,0.00037916,120]
[392866612,1762085612017,242.15909246,0.00037916,120]
[392866613,1762085612614,251.11897888,0.00037916,120]
[392866615,1762085613223,260.4103811,0.00037916,120]
[392866623,1762085647364,171.22760215,0.00030137,120]
[392866642,1762085706834,1000.0,0.00037916,120]
[392866647,1762085707469,1000.0,0.00037916,120]
[392866648,1762085708089,1000.0,0.00037916,120]
[392866649,1762085708734,1000.0,0.00037916,120]
[392866653,1762085709463,1000.0,0.00037916,120]
[392866657,1762085712092,151.0,0.00037916,120]
[392866658,1762085712694,151.0,0.00037916,120]
[392866666,1762085767799,-150.0,0.00021642,2]
[392866667,1762085767823,-35.19962921,0.00021658,2]
[392866669,1762085769787,-164.26,0.00021658,2]
[392866673,1762085795554,999.0,0.00020857,2]
[392866675,1762085796251,-106.39245761,0.00021658,2]
[392866676,1762085796276,-44.60754239,0.00021673,2]
[392866677,1762085799610,-153.99755623,0.00021673,2]
[392866681,1762085851633,770.8767504,0.00020872,2]
[392866682,1762085852069,5000.0,0.000225,3]
[392866707,1762085889975,5000.0,0.000225,3]
[392866708,1762085898373,5000.0,0.000225,3]
[392866709,1762085902226,504.45718544,0.00021573,2]
[392866710,1762085905874,632.63126532,0.00021608,2]
[392866711,1762085914110,4809.6029153,0.000225,3]
[392866712,1762085921932,2000.41524522,0.000225,3]
[392866714,1762085931413,163.0,0.000225,3]
[392866715,1762085939237,163.0,0.000225,3]
[392866717,1762085958584,4757.32327316,0.000225,3]
[392866719,1762085962744,-161.00468201,0.00021673,2]
[392866720,1762085965407,-264.38602623,0.00021673,2]
[392866721,1762085968228,-180.10926753,0.00021673,2]
[392866722,1762085968333,166.857362,0.00020859,2]
[392866724,1762085977763,-152.08678166,0.00021673,2]
[392866725,1762085979381,584.72,0.0002188,3]
[392866726,1762085989062,164.0,0.000328,120]
[392866727,1762085991197,164.0,0.000328,120]
[392866728,1762085992760,-26.29763103,0.00021673,2]
[392866729,1762085992784,-172.66155635,0.000217,2]
[392866730,1762085996839,-301.82713422,0.000217,2]
[392866731,1762085999386,-25.51130943,0.000217,2]
[392866732,1762085999410,-246.57466319,0.00021773,2]
[392866733,1762086005022,-228.07955308,0.00021773,2]
[392866734,1762086006499,848.33968851,0.00037887,120]
[392866735,1762086007035,-173.83969261,0.00021773,2]
[392866736,1762086007141,158.3292384,0.00021697,2]
[392866745,1762086018798,1950.8033322,0.00021608,2]
[392866746,1762086020186,-220.50790515,0.00021773,2]
[392866747,1762086020211,-150.0,0.00021797,2]
[392866748,1762086020233,-27.13342895,0.00021811,2]
[392866749,1762086021480,4384.91818995,0.00021608,2]
[392866750,1762086031177,164.0,0.000217,2]
[392866751,1762086032465,-231.47887292,0.00021811,2]
[392866752,1762086035728,-23.87259255,0.00021811,2]
[392866753,1762086035752,-276.02257037,0.00021871,2]
[392866754,1762086037253,-223.97742963,0.00021871,2]
[392866755,1762086037275,-16.01009149,0.00021871,2]
[392866756,1762086039318,-483.98990851,0.00021871,2]
[392866757,1762086039341,-41.15359991,0.00021871,2]
[392866758,1762086040484,295.0,0.00021642,2]
[392866759,1762086042579,-230.73758746,0.00021871,2]
[392866760,1762086044225,-220.1793355,0.00021871,2]
[392866761,1762086045917,150.0,0.00021759,2]
[392866762,1762086047046,165.99561189,0.000217,2]
[392866763,1762086051230,295.0,0.00021654,2]
[392866771,1762086062327,300.0,0.0002187,2]
[392866772,1762086062481,163.0,0.000217,2]
[392866781,1762086085889,163.0,0.000328,120]
[392866782,1762086102862,179.844,0.00021452,2]
[392866785,1762086112651,150.0,0.00021431,2]
[392866786,1762086122305,300.0,0.0002187,2]
[392866788,1762086161916,509.0,0.0002187,2]
[392866789,1762086180230,150.0,0.00021208,2]
[392866790,1762086182435,300.0,0.00021869,2]
[392866791,1762086194812,200.0,0.0002187,2]
[392866793,1762086208732,655.47640469,0.00021608,2]
[392866794,1762086242432,300.0,0.00021869,2]
[392866795,1762086247217,150.0,0.000217,2]
[392866796,1762086271701,500.0,0.00021869,2]
[392866797,1762086271732,538.21785288,0.00021869,2]
[392866798,1762086271761,500.0,0.00021869,2]
[392866799,1762086271794,500.0,0.00021869,2]
[392866800,1762086271821,500.0,0.00021869,2]
[392866801,1762086271853,500.0,0.00021869,2]
[392866802,1762086271886,500.0,0.00021869,2]
[392866803,1762086271916,500.0,0.00021869,2]
[392866804,1762086271946,184.71155349,0.00021869,2]
[392866805,1762086271974,500.0,0.00021869,2]
[392866806,1762086272010,500.0,0.00021869,2]
[392866807,1762086272037,500.0,0.00021869,2]
[392866808,1762086272066,500.0,0.00021869,2]
[392866809,1762086272093,124.76018894,0.00021869,2]
[392866810,1762086272117,375.23981106,0.00021869,2]
[392866811,1762086272163,500.0,0.00021869,2]
[392866812,1762086272193,598.20132847,0.00021869,2]
[392866813,1762086272221,500.0,0.00021869,2]
[392866814,1762086272248,500.0,0.00021869,2]
[392866815,1762086272285,500.0,0.00021869,2]
[392866816,1762086272319,500.0,0.00021869,2]
[392866902,1762086405636,453.95531264,0.00020772,4]
[392866903,1762086405695,453.68337455,0.0002098,6]
[392866912,1762086475127,20430.35043998,0.0002,7]
[392866913,1762086475153,15925.64956002,0.0002,7]